{"text_format":"1","workbook":"xlsx","n_sheets":2,"sheets":["Zadavaci formular","Ciselniky"],"not_rendered":{"charts":0,"images":0,"macros":1,"external_links":0,"defined_names":7,"comments":0,"pivot_tables":0},"unopened":[],"bounds":{"document_bytes":16777216,"sheet_cells":100000,"rows_first":2000,"rows_last":500,"rows_between":2000,"halvings":0,"cell_chars":16384,"cell_head_chars":4096},"cells_cut":0,"cells_raw":0,"read":"whole","date_system":"1900"}

{"sheet":"Zadavaci formular","index":0,"n_rows":212,"n_cols":53,"rows_kept":212,"cut":false,"hidden":false,"merged":[[176,1,210,37],[41,31,41,37],[43,31,43,34],[43,35,43,37],[45,31,45,34],[45,35,45,37],[211,1,211,4],[211,5,211,9],[211,24,211,37],[102,4,102,8],[102,16,102,17],[102,20,102,27],[102,29,102,34],[102,36,102,37],[104,4,104,8],[104,16,104,17],[104,20,104,27],[104,29,104,34],[104,36,104,37],[110,1,110,12],[110,14,110,17],[110,20,110,23],[110,25,110,37],[120,6,120,17],[112,25,112,37],[114,1,114,12],[98,4,98,8],[98,16,98,17],[98,20,98,27],[98,29,98,34],[98,36,98,37],[100,4,100,8],[100,16,100,17],[100,20,100,27],[100,29,100,34],[100,36,100,37],[114,14,114,17],[114,20,114,23],[114,25,114,37],[94,20,94,27],[94,29,94,34],[94,36,94,37],[96,4,96,8],[96,13,96,14],[96,16,96,17],[96,20,96,27],[96,29,96,34],[96,36,96,37],[85,16,85,17],[85,20,85,27],[85,29,85,34],[85,36,85,37],[88,20,88,27],[90,1,90,9],[90,11,90,14],[90,16,90,17],[90,20,90,27],[90,29,90,34],[90,36,90,37],[81,16,81,17],[81,20,81,27],[81,29,81,34],[81,36,81,37],[83,4,83,8],[83,16,83,17],[83,20,83,27],[83,29,83,34],[83,36,83,37],[33,43,33,45],[33,46,33,48],[69,20,69,27],[71,1,71,9],[71,11,71,14],[71,16,71,17],[71,20,71,27],[71,29,71,34],[71,36,71,37],[45,1,45,13],[45,23,45,25],[45,27,45,29],[33,27,33,29],[35,23,35,25],[35,27,35,29],[64,16,64,17],[64,20,64,27],[64,29,64,34],[64,36,64,37],[66,16,66,17],[66,20,66,27],[66,29,66,34],[66,36,66,37],[64,4,64,8],[29,36,29,37],[56,13,56,14],[56,4,56,8],[39,35,39,37],[37,23,37,25],[37,27,37,29],[39,23,39,25],[39,27,39,29],[41,23,41,25],[41,27,41,29],[37,35,37,37],[43,23,43,25],[43,27,43,29],[31,1,31,13],[33,1,33,13],[35,1,35,13],[37,1,37,13],[39,1,39,13],[43,1,43,13],[41,1,41,13],[33,23,33,25],[50,20,50,27],[52,1,52,9],[52,11,52,14],[58,13,58,14],[66,4,66,8],[60,16,60,17],[60,20,60,27],[60,29,60,34],[60,36,60,37],[62,16,62,17],[62,20,62,27],[62,29,62,34],[62,36,62,37],[60,4,60,8],[62,4,62,8],[58,4,58,8],[58,16,58,17],[58,20,58,27],[58,29,58,34],[58,36,58,37],[52,16,52,17],[52,20,52,27],[52,29,52,34],[52,36,52,37],[54,16,54,17],[54,20,54,27],[54,29,54,34],[54,36,54,37],[56,16,56,17],[56,20,56,27],[56,29,56,34],[56,36,56,37],[73,29,73,34],[73,36,73,37],[75,13,75,14],[75,16,75,17],[75,20,75,27],[75,29,75,34],[75,36,75,37],[77,13,77,14],[77,16,77,17],[77,20,77,27],[77,29,77,34],[77,36,77,37],[75,4,75,8],[77,4,77,8],[79,4,79,8],[79,20,79,27],[85,4,85,8],[119,1,119,7],[119,9,119,17],[73,16,73,17],[73,20,73,27],[79,16,79,17],[119,25,119,37],[112,1,112,12],[112,14,112,17],[112,20,112,23],[92,16,92,17],[92,20,92,27],[92,29,92,34],[92,36,92,37],[94,4,94,8],[94,13,94,14],[94,16,94,17],[79,29,79,34],[79,36,79,37],[81,4,81,8],[25,12,25,14],[16,29,16,37],[7,6,7,22],[9,6,9,22],[11,6,11,22],[13,6,13,22],[13,28,13,37],[7,32,7,37],[18,29,18,37],[20,29,20,31],[20,35,20,37],[22,29,22,37],[16,22,16,23],[18,22,18,23],[20,22,20,23],[22,22,22,23],[125,23,125,27],[125,29,125,37],[121,1,121,7],[121,9,121,17],[123,1,123,7],[123,9,123,17],[125,1,125,7],[125,9,125,17],[123,29,124,37],[122,6,122,17],[124,6,124,17],[121,23,121,37],[123,23,123,27],[126,6,126,17],[137,7,137,37],[139,4,139,37],[141,4,141,37],[150,6,150,17],[148,6,148,17],[150,25,150,37],[148,25,148,37],[146,25,146,37],[135,12,135,17],[135,4,135,8],[135,9,135,11],[172,6,172,17],[174,6,174,11],[128,6,128,17],[133,6,133,17],[131,6,131,17],[133,24,133,37],[131,24,131,37],[135,24,135,37],[146,6,146,17],[162,15,162,17],[164,15,164,17],[166,15,166,17],[162,8,162,13],[164,8,164,13],[166,8,166,13],[154,6,155,37],[152,6,152,37],[166,24,166,37],[162,1,162,6],[164,1,164,6],[166,1,166,6],[1,1,3,37],[27,27,27,37],[9,28,10,37],[11,28,12,37],[33,31,33,34],[35,31,35,34],[37,31,37,34],[29,43,29,45],[31,27,31,29],[31,35,31,37],[33,35,33,37],[31,23,31,25],[27,5,27,21],[29,23,29,25],[29,27,29,29],[18,6,18,9],[20,6,20,9],[22,6,22,9],[18,11,18,13],[20,11,20,13],[22,11,22,13],[35,35,35,37],[29,30,29,32],[29,33,29,35]]}
[100]
[null,"Dílčí zpráva o zásahu"]
[]
[]
[]
[null,"Základní údaje události"]
[]
[null,"Typ události SSU:",null,null,null,null,null,null,null,null,null,null,null,null,null,null,null,null,null,null,null,null,null,null,null,"Evidenční číslo události:"]
[]
[null,"Popis typu:",null,null,null,null,null,null,null,null,null,null,null,null,null,null,null,null,null,null,null,null,null,null,null,"Adresa:"]
[]
[null,"Objekt:"]
[]
[null,"Prostor:"]
[]
[]
[null,null,null,null,null,null,"Datum:",null,null,null,null,"Čas:",null,null,null,null,"Počet jednotek:",null,null,null,null,null,null,null,null,"Místní JPO:"]
[]
[null,"Ohlášení:",null,null,null,null,null,null,null,null,null,null,null,null,null,null,"Výkon proudů:",null,null,null,null,null,null,null,{"$f":"IF((AND($AS$19=1,$W$19=\"\")=TRUE),\"!\",\"\")","v":""},"Uniklé látky:",null,null,null,null,null,null,null,null,null,null,null,null,null,null,null,null,null,null,{"$f":"IF((OR($O$32<>\"\",$O$34<>\"\",$O$36<>\"\",$O$38<>\"\",$O$40<>\"\",$O$42<>\"\",$O$44<>\"\",$O$46<>\"\")=TRUE),1,\"\")","v":""}]
[]
[null,"Lokalizace:",null,null,null,null,null,null,null,null,null,null,null,null,null,null,"Plocha požáru:",null,null,null,null,null,null,null,{"$f":"IF(AND($G$8=Ciselniky!$F$2,$W$21=\"\")=TRUE,\"!\",\"\")","v":""},"UN kód:",null,null,null,null,null,null,null,"Množství:"]
[]
[null,"Likvidace:",null,null,null,null,null,null,null,null,null,null,null,null,null,null,"Fronta hašení",null,null,null,null,null,null,null,null,"Kontaminace:"]
[]
[]
[null,"Základní údaje jednotky:"]
[]
[null,"Jednotka PO:",null,null,null,null,null,null,null,null,null,null,null,null,null,null,null,null,null,null,null,null,null,"Velitel jednotky:",null,null,null,null,null,null,null,null,null,null,null,null,null,null,null,null,null,{"$f":"IF((AND($F$28<>\"\",$AB28=\"\")=TRUE),1,\"\")","v":""}]
[]
[null,"Druh činnosti, vč. počtu proudů:",null,null,null,null,null,null,null,null,null,null,null,null,"#",null,null,null,null,null,null,null,null,null,null,null,null,null,null,null,null,"Pořadí jednotky:",null,null,null,10,null,null,null,null,null,null,"Datum ohlášení UD:",{"$f":"G19","v":"00:00:00"},null,null,null,null,null,"Činnost","hasivo:",{"$f":"IF((SUM($AY$32:$AY$46)>0),1,0)","v":0},{"$f":"IF(SUM($AZ$30,$AZ$32)<2,1,0)","v":1}]
[]
[null,null,null,null,null,null,null,null,null,null,null,null,null,null,null,{"$f":"IF((OR($B32=Ciselniky!$D$8,$B32=Ciselniky!$D$9,$B32=Ciselniky!$D$10,$B32=Ciselniky!$D$11,$B32=Ciselniky!$D$12,$B32=Ciselniky!$D$13,$B32=Ciselniky!$D$14,$B32=Ciselniky!$D$15)=TRUE),IF($O32=\"\",\"!\",\"\"),\"\")","v":""},null,null,null,null,null,null,null,"Datum:",null,null,null,"Čas:",null,null,null,"Pořadí jednotky:",null,null,null,null,null,null,null,null,null,null,"DATE+TIME","Osob",null,null,"TPO",null,null,null,{"$f":"IF((OR($B32=Ciselniky!$D$8,$B32=Ciselniky!$D$9,$B32=Ciselniky!$D$10,$B32=Ciselniky!$D$11,$B32=Ciselniky!$D$12,$B32=Ciselniky!$D$13,$B32=Ciselniky!$D$14,$B32=Ciselniky!$D$15)=TRUE),1,0)","v":0},{"$f":"IF((AND($AF$44=\"\",$AF$46=\"\")=FALSE),0,1)","v":1}]
[null,null,null,null,null,null,null,null,null,null,null,null,null,null,null,{"$f":"IF((OR($B33=Ciselniky!$D$8,$B33=Ciselniky!$D$9,$B33=Ciselniky!$D$10,$B33=Ciselniky!$D$11,$B33=Ciselniky!$D$12)=TRUE),IF($O33=\"\",\"!\",\"\"),\"\")","v":""}]
[null,null,null,null,null,null,null,null,null,null,null,null,null,null,null,{"$f":"IF((OR($B34=Ciselniky!$D$8,$B34=Ciselniky!$D$9,$B34=Ciselniky!$D$10,$B34=Ciselniky!$D$11,$B34=Ciselniky!$D$12,$B34=Ciselniky!$D$13,$B34=Ciselniky!$D$14,$B34=Ciselniky!$D$15)=TRUE),IF($O34=\"\",\"!\",\"\"),\"\")","v":""},"Ohlášení:",null,null,null,null,null,null,null,null,null,null,null,null,null,null,"Vzdálenost [km]:",null,null,null,null,null,null,null,null,null,{"$f":"IF((AND($F$28<>\"\",$AJ34=\"\")=TRUE),1,\"\")","v":""},null,{"$f":"SUM($AR$53:$AR$105)","v":0},null,null,{"$f":"SUM(AU53:AU115)","v":0},null,null,null,{"$f":"IF((OR($B34=Ciselniky!$D$8,$B34=Ciselniky!$D$9,$B34=Ciselniky!$D$10,$B34=Ciselniky!$D$11,$B34=Ciselniky!$D$12,$B34=Ciselniky!$D$13,$B34=Ciselniky!$D$14,$B34=Ciselniky!$D$15)=TRUE),1,0)","v":0}]
[]
[null,null,null,null,null,null,null,null,null,null,null,null,null,null,null,{"$f":"IF((OR($B36=Ciselniky!$D$8,$B36=Ciselniky!$D$9,$B36=Ciselniky!$D$10,$B36=Ciselniky!$D$11,$B36=Ciselniky!$D$12,$B36=Ciselniky!$D$13,$B36=Ciselniky!$D$14,$B36=Ciselniky!$D$15)=TRUE),IF($O36=\"\",\"!\",\"\"),\"\")","v":""},"Vyhlášení poplachu:",null,null,null,null,null,null,null,null,null,null,null,null,null,null,"Počet osob:",null,null,null,null,null,null,null,null,null,{"$f":"IF((AND($F$28<>\"\",$AJ36=\"\")=TRUE),1,\"\")","v":""},{"$f":"$X36+$AB36","v":"00:00:00"},null,null,null,null,null,null,null,{"$f":"IF((OR($B36=Ciselniky!$D$8,$B36=Ciselniky!$D$9,$B36=Ciselniky!$D$10,$B36=Ciselniky!$D$11,$B36=Ciselniky!$D$12,$B36=Ciselniky!$D$13,$B36=Ciselniky!$D$14,$B36=Ciselniky!$D$15)=TRUE),1,0)","v":0}]
[]
[null,null,null,null,null,null,null,null,null,null,null,null,null,null,null,{"$f":"IF((OR($B38=Ciselniky!$D$8,$B38=Ciselniky!$D$9,$B38=Ciselniky!$D$10,$B38=Ciselniky!$D$11,$B38=Ciselniky!$D$12,$B38=Ciselniky!$D$13,$B38=Ciselniky!$D$14,$B38=Ciselniky!$D$15)=TRUE),IF($O38=\"\",\"!\",\"\"),\"\")","v":""},"Výjezdu:",null,null,null,null,null,null,null,null,null,null,null,null,null,null,"Počet techniky:",null,null,null,null,null,null,null,null,null,{"$f":"IF((AND($F$28<>\"\",$AJ38=\"\")=TRUE),1,\"\")","v":""},{"$f":"$X38+$AB38","v":"00:00:00"},null,null,null,null,null,null,null,{"$f":"IF((OR($B38=Ciselniky!$D$8,$B38=Ciselniky!$D$9,$B38=Ciselniky!$D$10,$B38=Ciselniky!$D$11,$B38=Ciselniky!$D$12,$B38=Ciselniky!$D$13,$B38=Ciselniky!$D$14,$B38=Ciselniky!$D$15)=TRUE),1,0)","v":0}]
[]
[null,null,null,null,null,null,null,null,null,null,null,null,null,null,null,{"$f":"IF((OR($B40=Ciselniky!$D$8,$B40=Ciselniky!$D$9,$B40=Ciselniky!$D$10,$B40=Ciselniky!$D$11,$B40=Ciselniky!$D$12,$B40=Ciselniky!$D$13,$B40=Ciselniky!$D$14,$B40=Ciselniky!$D$15)=TRUE),IF($O40=\"\",\"!\",\"\"),\"\")","v":""},"Příjezdu k zásahu:",null,null,null,null,null,null,null,null,null,null,null,null,null,null,"Počet zásahů:",null,null,null,null,null,null,null,null,null,null,{"$f":"$X40+$AB40","v":"00:00:00"},null,null,null,null,null,null,null,{"$f":"IF((OR($B40=Ciselniky!$D$8,$B40=Ciselniky!$D$9,$B40=Ciselniky!$D$10,$B40=Ciselniky!$D$11,$B40=Ciselniky!$D$12,$B40=Ciselniky!$D$13,$B40=Ciselniky!$D$14,$B40=Ciselniky!$D$15)=TRUE),1,0)","v":0}]
[]
[null,null,null,null,null,null,null,null,null,null,null,null,null,null,null,{"$f":"IF((OR($B42=Ciselniky!$D$8,$B42=Ciselniky!$D$9,$B42=Ciselniky!$D$10,$B42=Ciselniky!$D$11,$B42=Ciselniky!$D$12,$B42=Ciselniky!$D$13,$B42=Ciselniky!$D$14,$B42=Ciselniky!$D$15)=TRUE),IF($O42=\"\",\"!\",\"\"),\"\")","v":""},"Zahájení zásahu:",null,null,null,null,null,null,null,null,null,null,null,null,null,null,"Spotřeba hasiva, sorbentu:",null,null,null,null,null,null,null,null,null,null,null,null,null,null,null,null,null,null,{"$f":"IF((OR($B42=Ciselniky!$D$8,$B42=Ciselniky!$D$9,$B42=Ciselniky!$D$10,$B42=Ciselniky!$D$11,$B42=Ciselniky!$D$12,$B42=Ciselniky!$D$13,$B42=Ciselniky!$D$14,$B42=Ciselniky!$D$15)=TRUE),1,0)","v":0}]
[]
[null,null,null,null,null,null,null,null,null,null,null,null,null,null,null,{"$f":"IF((OR($B44=Ciselniky!$D$8,$B44=Ciselniky!$D$9,$B44=Ciselniky!$D$10,$B44=Ciselniky!$D$11,$B44=Ciselniky!$D$12,$B44=Ciselniky!$D$13,$B44=Ciselniky!$D$14,$B44=Ciselniky!$D$15)=TRUE),IF($O44=\"\",\"!\",\"\"),\"\")","v":""},"Odjezdu na základnu:",null,null,null,null,null,null,null,null,null,null,null,null,null,null,null,null,null,null,null,null,null,null,null,null,null,{"$f":"$X44+$AB44","v":"00:00:00"},null,null,null,null,null,null,null,{"$f":"IF((OR($B44=Ciselniky!$D$8,$B44=Ciselniky!$D$9,$B44=Ciselniky!$D$10,$B44=Ciselniky!$D$11,$B44=Ciselniky!$D$12,$B44=Ciselniky!$D$13,$B44=Ciselniky!$D$14,$B44=Ciselniky!$D$15)=TRUE),1,0)","v":0}]
[]
[null,null,null,null,null,null,null,null,null,null,null,null,null,null,null,{"$f":"IF((OR($B46=Ciselniky!$D$8,$B46=Ciselniky!$D$9,$B46=Ciselniky!$D$10,$B46=Ciselniky!$D$11,$B46=Ciselniky!$D$12,$B46=Ciselniky!$D$13,$B46=Ciselniky!$D$14,$B46=Ciselniky!$D$15)=TRUE),IF($O46=\"\",\"!\",\"\"),\"\")","v":""},"Příjezd na základnu:",null,null,null,null,null,null,null,null,null,null,null,null,null,null,null,null,null,null,null,null,null,null,null,null,null,{"$f":"$X46+$AB46","v":"00:00:00"},null,null,null,null,null,null,null,{"$f":"IF((OR($B46=Ciselniky!$D$8,$B46=Ciselniky!$D$9,$B46=Ciselniky!$D$10,$B46=Ciselniky!$D$11,$B46=Ciselniky!$D$12,$B46=Ciselniky!$D$13,$B46=Ciselniky!$D$14,$B46=Ciselniky!$D$15)=TRUE),1,0)","v":0}]
[]
[]
[null,"Technika jednotky u zásahu:"]
[]
[null,"Název techniky:",null,null,null,null,null,null,null,null,null,"Volací znak:",null,null,null,null,null,null,null,null,"Osádka (příjmení a jméno):",null,null,null,null,null,null,null,null,"Ochranné prostředky:",null,null,null,null,null,null,"Čas:"]
[]
[null,null,null,null,null,null,null,null,null,null,null,null,null,null,null,null,"Řidič",null,null,null,null,null,null,null,null,null,null,null,null,null,null,null,null,null,null,null,null,null,null,null,null,null,null,{"$f":"IF($U53=\"\",0,1)","v":0},null,null,{"$f":"IF($B53=\"\",0,1)","v":0}]
[]
[null,"Časové údaje k jízdě:",null,null,null,null,null,null,null,null,null,null,null,null,null,null,"Velitel:",null,null,null,null,null,null,null,null,null,null,null,null,null,null,null,null,null,null,null,null,null,null,null,null,null,null,{"$f":"IF($U55=\"\",0,1)","v":0}]
[]
[null,"Povolání:",null,null,null,null,null,null,null,"Ujeto [km]:",null,null,null,null,null,null,"č. 1",null,null,null,null,null,null,null,null,null,null,null,null,null,null,null,null,null,null,null,null,null,null,null,null,null,null,{"$f":"IF($U57=\"\",0,1)","v":0}]
[]
[null,"Výjezd:",null,null,null,null,null,null,null,"Motohodiny:",null,null,null,null,null,null,"č. 2",null,null,null,null,null,null,null,null,null,null,null,null,null,null,null,null,null,null,null,null,null,null,null,null,null,null,{"$f":"IF($U59=\"\",0,1)","v":0}]
[]
[null,"Na místě:",null,null,null,null,null,null,null,null,null,null,null,null,null,null,"č. 3",null,null,null,null,null,null,null,null,null,null,null,null,null,null,null,null,null,null,null,null,null,null,null,null,null,null,{"$f":"IF($U61=\"\",0,1)","v":0}]
[]
[null,"Odjezd:",null,null,null,null,null,null,null,null,null,null,null,null,null,null,"č. 4",null,null,null,null,null,null,null,null,null,null,null,null,null,null,null,null,null,null,null,null,null,null,null,null,null,null,{"$f":"IF($U63=\"\",0,1)","v":0}]
[]
[null,"Na základně:",null,null,null,null,null,null,null,null,null,null,null,null,null,null,"č. 5",null,null,null,null,null,null,null,null,null,null,null,null,null,null,null,null,null,null,null,null,null,null,null,null,null,null,{"$f":"IF($U65=\"\",0,1)","v":0}]
[]
[null,"Pohotovost:",null,null,null,null,null,null,null,null,null,null,null,null,null,null,"č. 6",null,null,null,null,null,null,null,null,null,null,null,null,null,null,null,null,null,null,null,null,null,null,null,null,null,null,{"$f":"IF($U67=\"\",0,1)","v":0}]
[]
[]
[null,"Název techniky:",null,null,null,null,null,null,null,null,null,"Volací znak:",null,null,null,null,null,null,null,null,"Osádka (příjmení a jméno):",null,null,null,null,null,null,null,null,"Ochranné prostředky:",null,null,null,null,null,null,"Čas:"]
[]
[null,null,null,null,null,null,null,null,null,null,null,null,null,null,null,null,"Řidič",null,null,null,null,null,null,null,null,null,null,null,null,null,null,null,null,null,null,null,null,null,null,null,null,null,null,{"$f":"IF($U72=\"\",0,1)","v":0},null,null,{"$f":"IF($B72=\"\",0,1)","v":0}]
[]
[null,"Časové údaje k jízdě:",null,null,null,null,null,null,null,null,null,null,null,null,null,null,"Velitel:",null,null,null,null,null,null,null,null,null,null,null,null,null,null,null,null,null,null,null,null,null,null,null,null,null,null,{"$f":"IF($U74=\"\",0,1)","v":0}]
[]
[null,"Povolání:",null,null,null,null,null,null,null,"Ujeto [km]:",null,null,null,null,null,null,"č. 1",null,null,null,null,null,null,null,null,null,null,null,null,null,null,null,null,null,null,null,null,null,null,null,null,null,null,{"$f":"IF($U76=\"\",0,1)","v":0}]
[]
[null,"Výjezd:",null,null,null,null,null,null,null,"Motohodiny:",null,null,null,null,null,null,"č. 2",null,null,null,null,null,null,null,null,null,null,null,null,null,null,null,null,null,null,null,null,null,null,null,null,null,null,{"$f":"IF($U78=\"\",0,1)","v":0}]
[]
[null,"Na místě:",null,null,null,null,null,null,null,null,null,null,null,null,null,null,"č. 3",null,null,null,null,null,null,null,null,null,null,null,null,null,null,null,null,null,null,null,null,null,null,null,null,null,null,{"$f":"IF($U80=\"\",0,1)","v":0}]
[]
[null,"Odjezd:",null,null,null,null,null,null,null,null,null,null,null,null,null,null,"č. 4",null,null,null,null,null,null,null,null,null,null,null,null,null,null,null,null,null,null,null,null,null,null,null,null,null,null,{"$f":"IF($U82=\"\",0,1)","v":0}]
[]
[null,"Na základně:",null,null,null,null,null,null,null,null,null,null,null,null,null,null,"č. 5",null,null,null,null,null,null,null,null,null,null,null,null,null,null,null,null,null,null,null,null,null,null,null,null,null,null,{"$f":"IF($U84=\"\",0,1)","v":0}]
[]
[null,"Pohotovost:",null,null,null,null,null,null,null,null,null,null,null,null,null,null,"č. 6",null,null,null,null,null,null,null,null,null,null,null,null,null,null,null,null,null,null,null,null,null,null,null,null,null,null,{"$f":"IF($U86=\"\",0,1)","v":0}]
[]
[]
[null,"Název techniky:",null,null,null,null,null,null,null,null,null,"Volací znak:",null,null,null,null,null,null,null,null,"Osádka (příjmení a jméno):",null,null,null,null,null,null,null,null,"Ochranné prostředky:",null,null,null,null,null,null,"Čas:"]
[]
[null,null,null,null,null,null,null,null,null,null,null,null,null,null,null,null,"Řidič",null,null,null,null,null,null,null,null,null,null,null,null,null,null,null,null,null,null,null,null,null,null,null,null,null,null,{"$f":"IF($U91=\"\",0,1)","v":0},null,null,{"$f":"IF($B91=\"\",0,1)","v":0}]
[]
[null,"Časové údaje k jízdě:",null,null,null,null,null,null,null,null,null,null,null,null,null,null,"Velitel:",null,null,null,null,null,null,null,null,null,null,null,null,null,null,null,null,null,null,null,null,null,null,null,null,null,null,{"$f":"IF($U93=\"\",0,1)","v":0}]
[]
[null,"Povolání:",null,null,null,null,null,null,null,"Ujeto [km]:",null,null,null,null,null,null,"č. 1",null,null,null,null,null,null,null,null,null,null,null,null,null,null,null,null,null,null,null,null,null,null,null,null,null,null,{"$f":"IF($U95=\"\",0,1)","v":0}]
[]
[null,"Výjezd:",null,null,null,null,null,null,null,"Motohodiny:",null,null,null,null,null,null,"č. 2",null,null,null,null,null,null,null,null,null,null,null,null,null,null,null,null,null,null,null,null,null,null,null,null,null,null,{"$f":"IF($U97=\"\",0,1)","v":0}]
[]
[null,"Na místě:",null,null,null,null,null,null,null,null,null,null,null,null,null,null,"č. 3",null,null,null,null,null,null,null,null,null,null,null,null,null,null,null,null,null,null,null,null,null,null,null,null,null,null,{"$f":"IF($U99=\"\",0,1)","v":0}]
[]
[null,"Odjezd:",null,null,null,null,null,null,null,null,null,null,null,null,null,null,"č. 4",null,null,null,null,null,null,null,null,null,null,null,null,null,null,null,null,null,null,null,null,null,null,null,null,null,null,{"$f":"IF($U101=\"\",0,1)","v":0}]
[]
[null,"Na základně:",null,null,null,null,null,null,null,null,null,null,null,null,null,null,"č. 5",null,null,null,null,null,null,null,null,null,null,null,null,null,null,null,null,null,null,null,null,null,null,null,null,null,null,{"$f":"IF($U103=\"\",0,1)","v":0}]
[]
[null,"Pohotovost:",null,null,null,null,null,null,null,null,null,null,null,null,null,null,"č. 6",null,null,null,null,null,null,null,null,null,null,null,null,null,null,null,null,null,null,null,null,null,null,null,null,null,null,{"$f":"IF($U105=\"\",0,1)","v":0}]
[]
[]
[null,"Pomocná technika jednotky u zásahu:"]
[null,"Typ:",null,null,null,null,null,null,null,null,null,null,null,null,"Motohodiny:",null,null,null,null,null,"Doba použití:",null,null,null,null,"Obsluha:"]
[]
[null,null,null,null,null,null,null,null,null,null,null,null,null,null,null,null,null,null,null,null,null,null,null,null,null,null,null,null,null,null,null,null,null,null,null,null,null,null,null,null,null,null,null,null,null,null,{"$f":"IF($B111=\"\",0,1)","v":0}]
[]
[null,null,null,null,null,null,null,null,null,null,null,null,null,null,null,null,null,null,null,null,null,null,null,null,null,null,null,null,null,null,null,null,null,null,null,null,null,null,null,null,null,null,null,null,null,null,{"$f":"IF($B113=\"\",0,1)","v":0}]
[]
[null,null,null,null,null,null,null,null,null,null,null,null,null,null,null,null,null,null,null,null,null,null,null,null,null,null,null,null,null,null,null,null,null,null,null,null,null,null,null,null,null,null,null,null,null,null,{"$f":"IF($B115=\"\",0,1)","v":0}]
[]
[null,"Spolupráce u zásahu:",null,null,null,null,null,null,null,null,null,null,null,null,null,null,null,null,null,null,null,"Využitá osobní pomoc:"]
[]
[null,"Složka IZS:",null,null,null,null,null,null,null,"Poznámka:"]
[null,null,null,null,null,null,null,null,null,null,null,null,null,null,null,null,null,null,null,null,null,"Příjmení a jméno:"]
[]
[null,null,null,null,null,null,null,null,null,null,null,null,null,null,null,null,null,null,null,null,null,"Adresa:"]
[]
[null,null,null,null,null,null,null,null,null,null,null,null,null,null,null,null,null,null,null,null,null,"Od kdy:",null,null,null,null,null,null,null,"Druh pomoci, rozsah:"]
[]
[null,null,null,null,null,null,null,null,null,null,null,null,null,null,null,null,null,null,null,null,null,"Do kdy:"]
[]
[]
[]
[null,"Využitá věcná pomoc:"]
[]
[null,"Příjmení a jméno:",null,null,null,null,null,null,null,null,null,null,null,null,null,null,null,null,null,null,null,"Firma:"]
[]
[null,"Adresa osoby:",null,null,null,null,null,null,null,null,null,null,null,null,null,null,null,null,null,null,null,"Adresa firmy:"]
[]
[null,"Od kdy:",null,null,null,null,null,null,null,"Do kdy:",null,null,null,null,null,null,null,null,null,null,null,"IČ:"]
[]
[null,"Poskytnutý prostředek:"]
[]
[null,"Účel využití:"]
[]
[null,"Poznámka:"]
[]
[]
[null,"Záznam o zranění o zranění členů zasahujících jednotek PO:"]
[]
[null,"Příjmení a jméno:",null,null,null,null,null,null,null,null,null,null,null,null,null,null,null,null,null,null,null,"Jednotka PO:",null,null,{"$f":"IF((AND($G$147<>\"\",$Z147=\"\")=TRUE),\"!\",\"\")","v":""}]
[]
[null,"Datum narození:",null,null,null,null,null,null,null,null,null,null,null,null,null,null,null,null,{"$f":"IF((AND($G$147<>\"\",$G149=\"\")=TRUE),\"!\",\"\")","v":""},null,null,"Složka IZS:"]
[]
[null,"Datum a čas zranění:",null,null,null,null,null,null,null,null,null,null,null,null,null,null,null,null,{"$f":"IF((AND($G$147<>\"\",$G151=\"\")=TRUE),\"!\",\"\")","v":""},null,null,"Velitel složky IZS:",null,null,{"$f":"IF((AND($G$147<>\"\",$Z151=\"\")=TRUE),\"!\",\"\")","v":""},null,null,null,null,null,null,null,null,null,null,null,null,null,null,{"$f":"IF((AND($G$147<>\"\",$G151=\"\")=TRUE),\"!\",\"\")","v":""}]
[]
[null,"Popis zranění:",null,null,null,{"$f":"IF((AND($G$147<>\"\",$Z151=\"\")=TRUE),\"!\",\"\")","v":""}]
[]
[null,"Příčina zranění:",null,null,null,{"$f":"IF((AND($G$147<>\"\",$Z151=\"\")=TRUE),\"!\",\"\")","v":""}]
[]
[]
[]
[null,"Záznamy o zranění, úmrtí a evakuaci:",null,null,null,null,null,null,null,null,null,null,null,null,null,null,null,null,null,null,null,"Činnost před příjezdem jednotek PO:"]
[]
[null,"Druh zranění:",null,null,null,null,null,null,"Věková kategorie:",null,null,null,null,null,null,"Počet osob:",null,null,null,null,null,"Samouhašení:",null,null,null,null,null,null,null,null,null,"Uhašeno SHZ:"]
[]
[null,null,null,null,null,null,null,null,null,null,null,null,null,null,{"$f":"IF((AND($B163<>\"\",$I163=\"\")=TRUE),\"!\",\"\")","v":""},null,null,null,{"$f":"IF((AND($I163<>\"\",$P163=\"\")=TRUE),\"!\",\"\")","v":""},null,null,"Zásah občanů:",null,null,null,null,null,null,null,null,null,"Žádný zásah:"]
[]
[null,null,null,null,null,null,null,null,null,null,null,null,null,null,{"$f":"IF((AND($B165<>\"\",$I165=\"\")=TRUE),\"!\",\"\")","v":""},null,null,null,{"$f":"IF((AND($I165<>\"\",$P165=\"\")=TRUE),\"!\",\"\")","v":""},null,null,"Zásah jiných služeb:",null,null,null,null,null,null,null,null,null,"Evakuace osob:"]
[]
[null,null,null,null,null,null,null,null,null,null,null,null,null,null,{"$f":"IF((AND($B167<>\"\",$I167=\"\")=TRUE),\"!\",\"\")","v":""},null,null,null,{"$f":"IF((AND($I167<>\"\",$P167=\"\")=TRUE),\"!\",\"\")","v":""},null,null,"Poznámka:"]
[]
[]
[null,"Text celkové zprávy o zásahu (Popis zásahu jednotky PO):"]
[]
[]
[null,"Zprávu zpracoval:"]
[]
[null,"Datum zpracování:"]
[]
[]
[]
[]
[]
[]
[]
[]
[]
[]
[]
[]
[]
[]
[]
[]
[]
[]
[]
[]
[]
[]
[]
[]
[]
[]
[]
[]
[]
[]
[]
[]
[]
[]
[]
[]
[null,"Verze formuláře:",null,null,null,"2012-003",null,null,null,null,null,null,null,null,null,null,null,null,null,null,null,null,null,null,"Vytvořeno pro potřeby HZS MSK."]

{"sheet":"Ciselniky","index":1,"n_rows":426,"n_cols":6,"rows_kept":426,"cut":false,"hidden":false,"merged":[]}
["Druh zranění","Věková kategorie","Typ zprávy","Činnosti JPO u zásahu","Platné_JPO","Typ události"]
["zranění civilních osob","dospělí","Dílčí zpráva o zásahu","0 - Jednotka nezasahovala (odvolána při cestě k zásahu)","811010 - stanice Bruntál","12 - Požár"]
["zachránění osob","děti do 15 let","Zpráva o zásahu","100 - Požární asistence","811011 - stanice Krnov","19 - Požár bez účasti JPO"]
["evakuace osob","osoby nad 60 let","Zpráva o činnosti","110 - Asistence při vyhled./likvid.nástr.(např.výbuš.) syst.","811012 - stanice Rýmařov","21 - Dopravní nehoda  silniční"]
["usmrcení osob","nezatříděno",null,"120 - Průzkum","811100 - Moravskoslezský Kočov","22 - Dopravní nehoda  silniční hromadná"]
[null,null,null,"130 - Použití hasicích přístrojů","811102 - Valšov","23 - Dopravní nehoda  železniční (vč. metra)"]
[null,null,null,"140 - Použití jednoduchých hasicích prostředků ","811103 - Milotice nad Opavou","24 - Dopravní nehoda  letecká"]
[null,null,null,"145 - Použití vody dodávané proudem D - počet proudů","811108 - Roudno","25 - Dopravní nehoda - ostatní"]
[null,null,null,"150 - Použití vody dodávané proudem C - počet proudů","811109 - Václavov u Bruntálu","41 - Únik plynu/aerosolu"]
[null,null,null,"160 - Použití vody dodávané proudem B - počet proudů","811110 - Světlá Hora","42 - Únik kapaliny (mimo ropných produktů)"]
[null,null,null,"170 - Použití vody z otočné proudnice - počet ","811111 - Andělská Hora","43 - Únik ropných produktů"]
[null,null,null,"180 - Použití vysokotlaké vody - počet proudů","811115 - Krnov","44 - Únik pevné látky"]
[null,null,null,"190 - Použití pěny lehké - počet agregátů","811119 - Úvalno","45 - Únik nebezpečné chem. látky - ostatní (včetně jiné než chemické)"]
[null,null,null,"200 - Použití pěny střední - počet proudů","811124 - Zátor","51 - Technická havárie"]
[null,null,null,"210 - Použití pěny těžké - počet proudů","811127 - Hošťálkovy","52 - Technická pomoc"]
[null,null,null,"220 - Použití smáčedla","811131 - Stará Ves","53 - Technologická pomoc"]
[null,null,null,"230 - Použití prášku z mobilní techniky","811132 - Dolní Moravice","54 - Ostatní pomoc"]
[null,null,null,"240 - Použití inertních plynů z mobilní techniky","811133 - Malá Morávka","61 - Radiační havárie a nehoda"]
[null,null,null,"250 - Hašení zvláštními technickými prostředky a hasivy ","811134 - Břidličná","71 - Ostatní mimořádné události (epidemie, nákazy,a jiné)"]
[null,null,null,"260 - Čerpání a odčerpávání vody","811136 - Rýžoviště","81 - Planý poplach"]
[null,null,null,"270 - Dálková doprava vody hadicemi","811137 - Lomnice"]
[null,null,null,"280 - Dálková doprava vody kyvadlová","811141 - Horní Město"]
[null,null,null,"290 - Doplňování vody","811144 - Vrbno pod Pradědem"]
[null,null,null,"300 - Chlazení","811145 - Karlovice"]
[null,null,null,"310 - Odvětrání prostorů přirozené","811146 - Široká Niva"]
[null,null,null,"320 - Odvětrání prostorů nucené","811147 - Karlova Studánka"]
[null,null,null,"330 - Izolace, separace látek","811152 - Heřmanovice"]
[null,null,null,"340 - Neutralizace","811153 - Horní Benešov"]
[null,null,null,"350 - Ředění","811154 - Lichnov"]
[null,null,null,"360 - Přečerpávání látky","811159 - Leskovec nad Moravicí"]
[null,null,null,"370 - Ohraničení, zahrazení uniklé látky","811160 - Město Albrechtice"]
[null,null,null,"380 - Jímání, sběr uniklé látky (mimo rop. produktů)","811166 - Jindřichov"]
[null,null,null,"390 - Zjišťování druhu uniklé látky","811167 - Třemešná"]
[null,null,null,"391 - Odběry vzorků","811175 - Dvorce"]
[null,null,null,"395 - Měření koncentrace plynů","811178 - Dětřichov nad Bystřicí"]
[null,null,null,"400 - Zajištění místa nehody","811179 - Osoblaha"]
[null,null,null,"410 - Odstraňování následků dopravní nehody","811181 - Bohušov"]
[null,null,null,"415 - Řízení provozu na komunikacích","811182 - Slezské Rudoltice"]
[null,null,null,"420 - Odstraňování překážek z komunikací aj. prostorů","811185 - Liptaň"]
[null,null,null,"430 - Odstraňování úniků rop. látek - provoz. náplní vozidel","811190 - Bruntál"]
[null,null,null,"435 - Protipožární opatření","811191 - Rýmařov"]
[null,null,null,"440 - Ochrana okolí","811804 - Krnovské opravny a strojírny a.s."]
[null,null,null,"445 - Osvětlení místa zásahu","811815 - Granitol Moravský Beroun"]
[null,null,null,"450 - Práce na vodě","811830 - AL INVEST Břidličná a.s."]
[null,null,null,"460 - Práce ve vodě a pod vodou","811844 - VHZS Město Libavá"]
[null,null,null,"470 - Obsluha nebezpečného zařízení","812010 - stanice Frýdek-Místek"]
[null,null,null,"480 - Provizorní oprava","812011 - stanice Třinec"]
[null,null,null,"490 - Rozebírání konstrukcí","812012 - stanice Nošovice"]
[null,null,null,"500 - Uzavírání vody, plynu, elektřiny","812085 - ŠVC HZS ČR - středisko Frýdek-Místek"]
[null,null,null,"510 - Vnikání do uzavřeného prostoru","812086 - SOŠ PO a VOŠ PO"]
[null,null,null,"515 - Odstraňování sněhu, ledu","812100 - Frýdek-Místek - Frýdek"]
[null,null,null,"520 - Zásah ve výšce pomocí lezecké techniky","812102 - Frýdek-Místek - Bahno"]
[null,null,null,"530 - Zásah ve výšce a nad volnou hloubkou ","812105 - Třinec - Dolní Lištná"]
[null,null,null,"540 - Vyhledávání osob","812107 - Třinec - Kojkovice"]
[null,null,null,"550 - Vyhledávání, záchrana osob z vody","812111 - Jablunkov"]
[null,null,null,"560 - Vyprošťování osob z hloubek","812112 - Bocanovice"]
[null,null,null,"570 - Vyprošťování osob z výšek","812113 - Návsí"]
[null,null,null,"580 - Vyprošťování osob z havarovaných vozidel","812114 - Písečná"]
[null,null,null,"590 - Vyprošťování z výtahu","812115 - Frýdlant nad Ostravicí"]
[null,null,null,"600 - Vyprošťování ze zhroucených staveb","812118 - Brušperk"]
[null,null,null,"605 - Transport pacienta","812119 - Baška"]
[null,null,null,"610 - Záchrana osob (jiná)","812120 - Baška - Hodoňovice"]
[null,null,null,"620 - Předlékařská pomoc","812123 - Bruzovice"]
[null,null,null,"625 - Spolupráce při ošetřování pacienta","812124 - Bukovec"]
[null,null,null,"630 - Vyprošťování předmětů","812125 - Bystřice"]
[null,null,null,"640 - Odchyt zvířat vč. vyhledávání","812126 - Čeladná"]
[null,null,null,"650 - Odchyt a likvidace obtíž. hmyzu","812127 - Dobrá"]
[null,null,null,"660 - Evakuace osob objektová","812128 - Dobratice"]
[null,null,null,"670 - Evakuace osob plošná","812129 - Dolní Domaslavice"]
[null,null,null,"680 - Evakuace předmětů","812130 - Dolní Lomná"]
[null,null,null,"690 - Evakuace zvířat a záchrana zvířat","812131 - Dolní Tošanovice"]
[null,null,null,"700 - Zřízení a zajiš. provozu evak. středis.","812132 - Fryčovice"]
[null,null,null,"710 - Označování nebezpečných oblastí","812133 - Třinec - Guty"]
[null,null,null,"720 - Dekontaminace osob vč. hasičů","812134 - Hnojník"]
[null,null,null,"730 - Dekontaminace techniky a prostř.","812137 - Horní Domaslavice"]
[null,null,null,"740 - Zprovoznění úkrytů","812138 - Horní Lomná"]
[null,null,null,"750 - Doprava pitné vody, potravin","812139 - Horní Tošanovice"]
[null,null,null,"760 - Výdej a rozděl. pitné vody, potravin","812140 - Hrádek"]
[null,null,null,"765 - Poskytnutí technických prostředků složkám IZS","812142 - Frýdek-Místek - Chlebovice"]
[null,null,null,"770 - Týlové práce","812143 - Janovice"]
[null,null,null,"775 - Monitoring vodního toku","812144 - Janovice - Bystré"]
[null,null,null,"780 - Čekání na speciální služby","812145 - Kaňovice"]
[null,null,null,"785 - Pořizování foto,video","812146 - Třinec - Karpentná"]
[null,null,null,"790 - Záloha na místě události","812147 - Komorní Lhotka"]
[null,null,null,"800 - Pohotovost na vlastní stanici","812150 - Kozlovice"]
[null,null,null,"810 - Záloha na stanici ","812151 - Kozlovice - Měrkovice"]
[null,null,null,"820 - Jiné","812152 - Krásná"]
[null,null,null,null,"812154 - Krmelín"]
[null,null,null,null,"812155 - Kunčice pod Ondřejníkem"]
[null,null,null,null,"812156 - Lhotka"]
[null,null,null,null,"812157 - Frýdek-Místek - Lískovec"]
[null,null,null,null,"812158 - Frýdlant nad Ostravicí - Lubno"]
[null,null,null,null,"812159 - Lučina"]
[null,null,null,null,"812160 - Frýdek-Místek - Lysůvky"]
[null,null,null,null,"812161 - Malenovice"]
[null,null,null,null,"812162 - Metylovice"]
[null,null,null,null,"812163 - Milíkov"]
[null,null,null,null,"812165 - Mosty u Jablunkova"]
[null,null,null,null,"812166 - Palkovice - Myslík"]
[null,null,null,null,"812168 - Nošovice"]
[null,null,null,null,"812169 - Nižní Lhoty"]
[null,null,null,null,"812171 - Frýdlant nad Ostravicí - Nová Ves"]
[null,null,null,null,"812172 - Nýdek"]
[null,null,null,null,"812173 - Třinec - Oldřichovice"]
[null,null,null,null,"812174 - Paskov - Oprechtice"]
[null,null,null,null,"812175 - Ostravice"]
[null,null,null,null,"812176 - Palkovice"]
[null,null,null,null,"812177 - Paskov"]
[null,null,null,null,"812178 - Pazderna"]
[null,null,null,null,"812179 - Písek"]
[null,null,null,null,"812180 - Pražmo - Morávka"]
[null,null,null,null,"812182 - Pržno"]
[null,null,null,null,"812183 - Pstruží"]
[null,null,null,null,"812184 - Raškovice"]
[null,null,null,null,"812185 - Ropice"]
[null,null,null,null,"812186 - Řeka"]
[null,null,null,null,"812187 - Řepiště"]
[null,null,null,null,"812188 - Sedliště"]
[null,null,null,null,"812189 - Frýdek-Místek - Skalice"]
[null,null,null,null,"812190 - Hukvaldy"]
[null,null,null,null,"812191 - Hukvaldy - Rychaltice"]
[null,null,null,null,"812193 - Soběšovice"]
[null,null,null,null,"812196 - Staré Hamry"]
[null,null,null,null,"812197 - Staré Město"]
[null,null,null,null,"812198 - Staříč"]
[null,null,null,null,"812199 - Střítež"]
[null,null,null,null,"812202 - Třanovice"]
[null,null,null,null,"812207 - Vojkovice"]
[null,null,null,null,"812208 - Vyšní Lhoty"]
[null,null,null,null,"812209 - Žabeň"]
[null,null,null,null,"812600 - Třinecké železárny a.s.  Třinec"]
[null,null,null,null,"812602 - Biocel a.s. Paskov"]
[null,null,null,null,"813010 - stanice Karviná"]
[null,null,null,null,"813011 - stanice Havířov"]
[null,null,null,null,"813012 - stanice Český Těšín"]
[null,null,null,null,"813013 - stanice Orlová"]
[null,null,null,null,"813014 - stanice Bohumín"]
[null,null,null,null,"813101 - Bohumín - Šunychl"]
[null,null,null,null,"813102 - Bohumín - Starý Bohumín"]
[null,null,null,null,"813104 - Bohumín - Skřečoň"]
[null,null,null,null,"813106 - Bohumín - Vrbice"]
[null,null,null,null,"813107 - Bohumín - Záblatí"]
[null,null,null,null,"813108 - Dolní Lutyně"]
[null,null,null,null,"813109 - Dolní Lutyně - Nerad"]
[null,null,null,null,"813110 - Dětmarovice"]
[null,null,null,null,"813113 - Petrovice - Marklovice"]
[null,null,null,null,"813114 - Petrovice - Závada"]
[null,null,null,null,"813115 - Karviná - Ráj"]
[null,null,null,null,"813116 - Karviná - Hranice"]
[null,null,null,null,"813119 - Karviná - Staré Město"]
[null,null,null,null,"813122 - Orlová - Poruba"]
[null,null,null,null,"813123 - Orlová - Město"]
[null,null,null,null,"813126 - Doubrava"]
[null,null,null,null,"813127 - Petřvald - Březiny"]
[null,null,null,null,"813129 - Rychvald"]
[null,null,null,null,"813130 - Havířov"]
[null,null,null,null,"813132 - Havířov - Životice"]
[null,null,null,null,"813135 - Horní Bludovice"]
[null,null,null,null,"813137 - Horní Suchá"]
[null,null,null,null,"813138 - Těrlicko"]
[null,null,null,null,"813140 - Těrlicko - Hradiště"]
[null,null,null,null,"813141 - Albrechtice"]
[null,null,null,null,"813144 - Český Těšín - Město"]
[null,null,null,null,"813147 - Český Těšín - Horní Žukov"]
[null,null,null,null,"813148 - Chotěbuz"]
[null,null,null,null,"813149 - Chotěbuz - Zpupná Lhota"]
[null,null,null,null,"813150 - Český Těšín - Mistřovice"]
[null,null,null,null,"813151 - Český Těšín - Mosty"]
[null,null,null,null,"813152 - Český Těšín - Stanislavice"]
[null,null,null,null,"813600 - ŽDB Group a.s. Bohumín"]
[null,null,null,null,"813605 - ČEZ a.s. Elektrárna Dětmarovice"]
[null,null,null,null,"813750 - Jednotka s letadlem"]
[null,null,null,null,"813800 - Bochemie a.s.  Bohumín"]
[null,null,null,null,"813835 - Varroc Automotive Systems, záv. Rychvald"]
[null,null,null,null,"813836 - OKD a.s. Důl Darkov"]
[null,null,null,null,"814010 - stanice Nový Jičín"]
[null,null,null,null,"814011 - stanice Bílovec"]
[null,null,null,null,"814100 - Bílovec"]
[null,null,null,null,"814101 - Bítov"]
[null,null,null,null,"814102 - Bravantice"]
[null,null,null,null,"814103 - Bílovec - Bravinné"]
[null,null,null,null,"814104 - Bílovec - Lubojaty"]
[null,null,null,null,"814105 - Bílovec - Stará Ves"]
[null,null,null,null,"814106 - Bílovec - Výškovice"]
[null,null,null,null,"814107 - Frenštát pod Radhoštěm"]
[null,null,null,null,"814108 - Fulnek"]
[null,null,null,null,"814109 - Fulnek - Děrné"]
[null,null,null,null,"814110 - Fulnek - Jerlochovice"]
[null,null,null,null,"814112 - Fulnek - Jílovec"]
[null,null,null,null,"814113 - Kujavy"]
[null,null,null,null,"814114 - Fulnek - Lukavec"]
[null,null,null,null,"814115 - Fulnek - Stachovice"]
[null,null,null,null,"814116 - Fulnek - Vlkovice"]
[null,null,null,null,"814120 - Kopřivnice"]
[null,null,null,null,"814121 - Kopřivnice - Mniší"]
[null,null,null,null,"814122 - Kopřivnice - Lubina I"]
[null,null,null,null,"814123 - Kopřivnice - Lubina II"]
[null,null,null,null,"814124 - Kopřivnice - Vlčovice"]
[null,null,null,null,"814126 - Libhošť"]
[null,null,null,null,"814127 - Nový Jičín - Straník"]
[null,null,null,null,"814129 - Odry"]
[null,null,null,null,"814130 - Odry - Dobešov"]
[null,null,null,null,"814131 - Jakubčovice nad Odrou"]
[null,null,null,null,"814132 - Odry - Kamenka"]
[null,null,null,null,"814133 - Odry - Klokočůvek"]
[null,null,null,null,"814134 - Odry - Loučky"]
[null,null,null,null,"814136 - Odry - Tošovice"]
[null,null,null,null,"814137 - Odry - Veselí"]
[null,null,null,null,"814138 - Odry - Vítovka"]
[null,null,null,null,"814139 - Vražné"]
[null,null,null,null,"814140 - Příbor"]
[null,null,null,null,"814141 - Příbor - Hájov"]
[null,null,null,null,"814142 - Příbor - Prchalov"]
[null,null,null,null,"814143 - Studénka  "]
[null,null,null,null,"814146 - Štramberk"]
[null,null,null,null,"814147 - Albrechtičky"]
[null,null,null,null,"814148 - Bartošovice"]
[null,null,null,null,"814149 - Bartošovice - Hukovice"]
[null,null,null,null,"814151 - Bernartice nad Odrou"]
[null,null,null,null,"814152 - Bordovice"]
[null,null,null,null,"814154 - Heřmanice u Oder - Véska"]
[null,null,null,null,"814155 - Heřmánky"]
[null,null,null,null,"814156 - Hladké Životice"]
[null,null,null,null,"814157 - Hodslavice"]
[null,null,null,null,"814158 - Hostašovice"]
[null,null,null,null,"814161 - Jeseník n. Odrou - Hůrka"]
[null,null,null,null,"814163 - Jistebník"]
[null,null,null,null,"814164 - Kateřinice"]
[null,null,null,null,"814166 - Lichnov"]
[null,null,null,null,"814167 - Luboměř"]
[null,null,null,null,"814168 - Luboměř - Heltínov"]
[null,null,null,null,"814169 - Mankovice"]
[null,null,null,null,"814170 - Mořkov"]
[null,null,null,null,"814171 - Mošnov"]
[null,null,null,null,"814172 - Petřvald"]
[null,null,null,null,"814173 - Petřvald - Petřvaldík"]
[null,null,null,null,"814174 - Pustějov"]
[null,null,null,null,"814175 - Rybí"]
[null,null,null,null,"814176 - Sedlnice"]
[null,null,null,null,"814177 - Skotnice"]
[null,null,null,null,"814178 - Slatina"]
[null,null,null,null,"814179 - Spálov"]
[null,null,null,null,"814180 - Starý Jičín"]
[null,null,null,null,"814183 - Starý Jičín - Janovice"]
[null,null,null,null,"814184 - Starý Jičín - Jičina"]
[null,null,null,null,"814185 - Starý Jičín - Palačov"]
[null,null,null,null,"814187 - Starý Jičín - Starojická Lhota"]
[null,null,null,null,"814188 - Suchdol nad Odrou"]
[null,null,null,null,"814189 - Tichá"]
[null,null,null,null,"814190 - Tísek"]
[null,null,null,null,"814191 - Trnávka"]
[null,null,null,null,"814192 - Trojanovice"]
[null,null,null,null,"814193 - Velké Albrechtice"]
[null,null,null,null,"814194 - Veřovice"]
[null,null,null,null,"814195 - Vrchy"]
[null,null,null,null,"814197 - Závišice"]
[null,null,null,null,"814199 - Ženklava"]
[null,null,null,null,"814600 - Tatra a.s. Kopřivnice"]
[null,null,null,null,"814602 - Semperflex a.s. Odry"]
[null,null,null,null,"814603 - Letiště Ostrava a.s.  Mošnov"]
[null,null,null,null,"814803 - Varroc Automotive Systems "]
[null,null,null,null,"814806 - Tonak a.s. Nový Jičín"]
[null,null,null,null,"815010 - stanice Opava"]
[null,null,null,null,"815011 - stanice Hlučín"]
[null,null,null,null,"815012 - stanice Vítkov"]
[null,null,null,null,"815085 - ŠVC HZS ČR - středisko Brno"]
[null,null,null,null,"815086 - ZÚ Hlučín rota zemních zachranných prací"]
[null,null,null,null,"815087 - ZÚ Hlučín rota chemická a speciální"]
[null,null,null,null,"815088 - ZÚ Hlučín rota podpory"]
[null,null,null,null,"815101 - Bělá"]
[null,null,null,null,"815102 - Hradec nad Moravicí - Benkovice"]
[null,null,null,null,"815103 - Hlučín - Bobrovníky"]
[null,null,null,null,"815105 - Hradec nad Moravicí - Bohučovice"]
[null,null,null,null,"815106 - Bohuslavice"]
[null,null,null,null,"815107 - Bolatice"]
[null,null,null,null,"815108 - Bolatice - Borová"]
[null,null,null,null,"815109 - Branka u Opavy"]
[null,null,null,null,"815111 - Brumovice"]
[null,null,null,null,"815114 - Březová"]
[null,null,null,null,"815115 - Budišov nad Budišovkou"]
[null,null,null,null,"815116 - Budišov n. Budišovkou - Guntramovice"]
[null,null,null,null,"815117 - Budišovice"]
[null,null,null,null,"815119 - Čermná ve Slezsku"]
[null,null,null,null,"815120 - Darkovice"]
[null,null,null,null,"815121 - Děhylov"]
[null,null,null,null,"815123 - Dobroslavice"]
[null,null,null,null,"815124 - Dolní Benešov"]
[null,null,null,null,"815126 - Dolní Životice"]
[null,null,null,null,"815128 - Hradec nad Moravicí - Domoradovice"]
[null,null,null,null,"815129 - Březová - Gručovice"]
[null,null,null,null,"815131 - Háj ve Slezsku - Smolkov"]
[null,null,null,null,"815132 - Hať"]
[null,null,null,null,"815133 - Hlavnice"]
[null,null,null,null,"815134 - Hlubočec"]
[null,null,null,null,"815135 - Hlučín - Darkovičky"]
[null,null,null,null,"815136 - Hněvošice"]
[null,null,null,null,"815137 - Holasovice"]
[null,null,null,null,"815138 - Neplachovice"]
[null,null,null,null,"815140 - Holasovice - Loděnice"]
[null,null,null,null,"815146 - Skřipov - Hrabství"]
[null,null,null,null,"815147 - Hrabyně"]
[null,null,null,null,"815149 - Hradec nad Moravicí"]
[null,null,null,null,"815150 - Hradec nad Moravicí - Kajlovec"]
[null,null,null,null,"815151 - Chlebičov"]
[null,null,null,null,"815152 - Chuchelná"]
[null,null,null,null,"815153 - Chvalíkovice"]
[null,null,null,null,"815154 - Jakartovice - Bohdanovice"]
[null,null,null,null,"815155 - Hradec n. Moravicí - Jakubčovice"]
[null,null,null,null,"815156 - Stěbořice - Jamnice"]
[null,null,null,null,"815157 - Březová - Jančí"]
[null,null,null,null,"815158 - Jezdkovice"]
[null,null,null,null,"815160 - Kobeřice"]
[null,null,null,null,"815163 - Kozmice"]
[null,null,null,null,"815165 - Kravaře"]
[null,null,null,null,"815168 - Kružberk"]
[null,null,null,null,"815170 - Kyjovice"]
[null,null,null,null,"815171 - Březová - Leskovec"]
[null,null,null,null,"815172 - Březová - Lesní Albrechtice"]
[null,null,null,null,"815173 - Háj ve Slezsku - Lhota"]
[null,null,null,null,"815178 - Litultovice"]
[null,null,null,null,"815179 - Ludgeřovice"]
[null,null,null,null,"815182 - Markvartovice"]
[null,null,null,null,"815183 - Melč"]
[null,null,null,null,"815184 - Mikolajice"]
[null,null,null,null,"815185 - Opava - Milostovice"]
[null,null,null,null,"815186 - Mladecko"]
[null,null,null,null,"815187 - Mokré Lazce"]
[null,null,null,null,"815189 - Nové Lublice"]
[null,null,null,null,"815190 - Nové Sedlice"]
[null,null,null,null,"815195 - Oldřišov"]
[null,null,null,null,"815197 - Opava - Kateřinky"]
[null,null,null,null,"815198 - Opava - Komárov"]
[null,null,null,null,"815199 - Opava - Kylešovice"]
[null,null,null,null,"815200 - Opava - Komárovské Chaloupky"]
[null,null,null,null,"815202 - Opava - Malé Hoštice"]
[null,null,null,null,"815204 - Otice"]
[null,null,null,null,"815206 - Píšť"]
[null,null,null,null,"815209 - Opava - Podvihov"]
[null,null,null,null,"815210 - Pustá Polom"]
[null,null,null,null,"815211 - Radkov"]
[null,null,null,null,"815212 - Raduň"]
[null,null,null,null,"815213 - Rohov"]
[null,null,null,null,"815214 - Velké Heraltice - Sádek"]
[null,null,null,null,"815215 - Skřipov"]
[null,null,null,null,"815216 - Slavkov"]
[null,null,null,null,"815217 - Služovice"]
[null,null,null,null,"815220 - Strahovice"]
[null,null,null,null,"815221 - Sudice"]
[null,null,null,null,"815222 - Opava - Suché Lazce"]
[null,null,null,null,"815223 - Šilheřovice"]
[null,null,null,null,"815224 - Štáblovice"]
[null,null,null,null,"815225 - Štěpánkovice"]
[null,null,null,null,"815226 - Štěpánkovice - Svoboda"]
[null,null,null,null,"815227 - Štítina"]
[null,null,null,null,"815229 - Těškovice"]
[null,null,null,null,"815230 - Třebom"]
[null,null,null,null,"815231 - Uhlířov"]
[null,null,null,null,"815232 - Opava - Vávrovice"]
[null,null,null,null,"815233 - Opava - Palhanec"]
[null,null,null,null,"815234 - Opava - Držkovice"]
[null,null,null,null,"815236 - Velké Heraltice"]
[null,null,null,null,"815237 - Velké Hoštice"]
[null,null,null,null,"815238 - Větřkovice"]
[null,null,null,null,"815241 - Opava - Vlaštovičky"]
[null,null,null,null,"815242 - Služovice - Vrbka"]
[null,null,null,null,"815243 - Vršovice"]
[null,null,null,null,"815244 - Vřesina u Opavy"]
[null,null,null,null,"815246 - Závada"]
[null,null,null,null,"815247 - Opava - Zlatníky"]
[null,null,null,null,"815248 - Hradec nad Moravicí - Žimrovice"]
[null,null,null,null,"815249 - Vítkov"]
[null,null,null,null,"815250 - Hlučín"]
[null,null,null,null,"815600 - TEVA Opava - Komárov"]
[null,null,null,null,"815800 - Lanex a.s. Bolatice"]
[null,null,null,null,"815801 - Brano a.s.  Branka u Opavy"]
[null,null,null,null,"815806 - MSA a.s. Dolní Benešov"]
[null,null,null,null,"815817 - Teva Opava - Komárov"]
[null,null,null,null,"815884 - Zemědělská a.s. Kylešovice"]
[null,null,null,null,"816010 - stanice Ostrava Zábřeh"]
[null,null,null,null,"816011 - stanice Fifejdy"]
[null,null,null,null,"816012 - stanice Poruba"]
[null,null,null,null,"816013 - stanice Hrabůvka"]
[null,null,null,null,"816014 - stanice Slezská Ostrava"]
[null,null,null,null,"816015 - stanice Přívoz"]
[null,null,null,null,"816100 - Hošťálkovice"]
[null,null,null,null,"816102 - Nová Ves"]
[null,null,null,null,"816104 - Petřkovice"]
[null,null,null,null,"816106 - Antošovice"]
[null,null,null,null,"816107 - Bartovice"]
[null,null,null,null,"816108 - Heřmanice"]
[null,null,null,null,"816109 - Koblov"]
[null,null,null,null,"816111 - Kunčičky"]
[null,null,null,null,"816112 - Michálkovice"]
[null,null,null,null,"816113 - Muglinov"]
[null,null,null,null,"816114 - Radvanice"]
[null,null,null,null,"816115 - Hrabová"]
[null,null,null,null,"816117 - Proskovice"]
[null,null,null,null,"816118 - Stará Bělá"]
[null,null,null,null,"816119 - Zábřeh"]
[null,null,null,null,"816120 - Krásné Pole"]
[null,null,null,null,"816121 - Martinov"]
[null,null,null,null,"816122 - Plesná"]
[null,null,null,null,"816123 - Polanka nad Odrou"]
[null,null,null,null,"816125 - Pustkovec"]
[null,null,null,null,"816126 - Svinov"]
[null,null,null,null,"816127 - Třebovice"]
[null,null,null,null,"816130 - Vratimov"]
[null,null,null,null,"816131 - Dolní Lhota"]
[null,null,null,null,"816132 - Klimkovice"]
[null,null,null,null,"816133 - Stará Ves n.Ondřejnicí"]
[null,null,null,null,"816134 - Šenov"]
[null,null,null,null,"816135 - Velká Polom"]
[null,null,null,null,"816136 - Vratimov - Horní Datyně"]
[null,null,null,null,"816137 - Čavisov"]
[null,null,null,null,"816138 - Horní Lhota"]
[null,null,null,null,"816139 - Stará Ves n. Ondřejnicí - Košatka"]
[null,null,null,null,"816140 - Olbramice"]
[null,null,null,null,"816141 - Václavovice"]
[null,null,null,null,"816142 - Vřesina u Ostravy"]
[null,null,null,null,"816600 - Vítkovice a.s."]
[null,null,null,null,"816601 - ArcelorMittal Ostrava a.s. "]
[null,null,null,null,"816603 - SŽDC, s.o. Ostrava"]
[null,null,null,null,"816604 - BorsodChem MCHZ s.r.o. Ostrava"]
[null,null,null,null,"816805 - OKD, OKK a.s. Svoboda"]
[null,null,null,null,"816806 - BorsodChem MCHZ s.r.o. Ostrava"]
[null,null,null,null,"816807 - Ostravské opravny a strojírny s.r.o."]